Cogmind - Beta 13 @@@ ROGUE MODE // 2024.04.20 @ 01:31:12 Player: Copyrite Result: Destroyed by JB-PQ6(R) with Subdweller Machine Gun Performance ------------- Evolutions (0) 0 Regions Visited (2) 400 Robots Destroyed (22) 110 Value Destroyed (600) 600 Prototype IDs (0) 0 Alien Tech Used (0) 0 Bonus (0) 0 TOTAL SCORE: 1110 Bonus ------- None Cogmind --------- Core Integrity 0/250 Matter 252/300 Energy 98/100 System Corruption 1% Temperature Cool (0) Movement Rolling (105) Ox1 Location -10/Subcaves Parts ------- > --- POWER (1) -------- (None) > --- PROPULSION (2) --- Wheel Compact Wheel > --- UTILITY (2) ------ Large Storage Unit Signal Interpreter > --- WEAPON (2) ------- Improved Light Cannon Improved Light Cannon > --- INVENTORY (15) --- Aluminum Leg Aluminum Leg Flight Unit Cooling System Small Storage Unit Sensor Array ECM Suite Light Armor Plating Hardened Light Armor Plating Scrap Shield Assault Rifle Subdweller Machine Gun Subdweller Machine Gun Datajack Peak State ------------ > --- POWER ------------ Ion Engine > --- PROPULSION ------- Light Treads Light Treads > --- UTILITY ---------- Large Storage Unit Light Armor Plating > --- WEAPON ----------- Improved Light Cannon Improved Light Cannon > --- INVENTORY -------- Light Ion Engine Aluminum Leg Aluminum Leg Wheel Compact Wheel Flight Unit Cooling System Small Storage Unit Signal Interpreter ECM Suite Hardened Light Armor Plating EM Pulse Gun Assault Rifle Assault Rifle Datajack [Rating: 10] Favorites ----------- Power Ion Engine Engine Ion Engine Propulsion Light Treads Treads Light Treads Wheel Wheel Utility Large Storage Unit Storage Large Storage Unit Processor Signal Interpreter Protection Light Armor Plating Weapon Improved Light Cannon Ballistic Gun Assault Rifle Ballistic Cannon Improved Light Cannon Build | -11 -10 -10 ------- Run | Yrd Mat Sub Slots Evolved . | . . . Power . | . . . Propulsion . | . . . Utility . | . . . Weapon . | . . . Parts Attached 17 | 7 7 3 Power 3 | 2 1 . Engine 3 | 2 1 . Core . | . . . Reactor . | . . . Propulsion 5 | 2 1 2 Treads 3 | 2 1 . Leg . | . . . Wheel 2 | . . 2 Hover . | . . . Flight . | . . . Utility 5 | 1 3 1 Device . | . . . Storage 3 | 1 2 . Processor 1 | . . 1 Hackware . | . . . Protection 1 | . 1 . Artifact . | . . . Weapon 4 | 2 2 . Energy Gun . | . . . Energy Cannon . | . . . Ballistic Gun 2 | 2 . . Ballistic Cannon 2 | . 2 . Launcher . | . . . Special Weapon . | . . . Impact Weapon . | . . . Slashing Weapon . | . . . Piercing Weapon . | . . . Special Melee Weapon . | . . . Unidentified Prototypes . | . . . Parts Lost 2 | . . 2 Power 1 | . . 1 Propulsion 1 | . . 1 Utility . | . . . Weapon . | . . . Highest Loss Streak 1 | . . 1 To Critical Strikes . | . . . Average Slot Usage (%) 96 | . 99 92 Engine 11 | . 14 7 Treads 21 | . 28 12 Wheel 6 | . . 15 Storage 14 | . 14 14 Processor 4 | . . 12 Protection 8 | . 13 2 Ballistic Gun 11 | . 19 . Ballistic Cannon 16 | . 8 28 Naked Turns . | . . . Heaviest Build 36 | 14 36 36 Greatest Support 40 | 40 40 40 Greatest Overweight (x) 2 | 2 . 1 Average Overweight (x) . | . . . Largest Inventory Capacity 15 | 8 15 15 Average Capacity 12 | 7 11 15 Most Carried 15 | 6 15 15 Average Carried 11 | 3 10 14 Final Capacity 15 | 8 15 15 Final Carried 15 | 6 15 15 Class Distribution -------------------- 100% | Mutant Dominant Class ---------------- Mutant | -10/Materials Mutant | -10/Subcaves Resources | -11 -10 -10 ----------- Run | Yrd Mat Sub Matter Collected 778 | 241 308 229 Remotely . | . . . Salvage Created 538 | . 383 155 Parts 41 | . 32 9 Haulers Intercepted . | . . . Recyclers Shooed . | . . . Parts Field Recycled . | . . . Retrieved Matter . | . . . Parts Self-Destructed . | . . . Prevented . | . . . Kills | -11 -10 -10 ------- Run | Yrd Mat Sub Combat Hostiles Destroyed 17 | . 11 6 Guns 8 | . 8 . Cannons 9 | . 3 6 Classes Destroyed 7 | . 6 1 Worker 1 | . 1 . Builder 1 | . 1 . Tunneler 1 | . 1 . Operator 2 | . 2 . Swarmer 3 | . 3 . Grunt 8 | . 8 . Subdweller 6 | . . 6 Best Kill Streak 4 | . 4 2 Combat Bots Only 3 | . 3 2 Max Kills in Single Turn 1 | . 1 1 Gunslinging . | . . . Exploded . | . . . Melee . | . . . Uniques/NPCs Destroyed . | . . . Combat | -11 -10 -10 -------- Run | Yrd Mat Sub Hostile Shots Fired 84 | . 50 34 Missed 15 | . 5 10 Damage Taken 1006 | . 473 533 Core 253 | . 107 146 Absorbed by Shields . | . . . Core Remaining (%) 100 | 100 . . Volleys Fired 69 | . 43 26 Largest 2 | . 2 2 Hottest 78 | . 78 78 Shots Fired 129 | . 75 54 Gun 50 | . 50 . Cannon 79 | . 25 54 Launcher . | . . . Special . | . . . Kinetic 129 | . 75 54 Thermal . | . . . Explosive . | . . . Electromagnetic . | . . . Robot Hit Streak 17 | . 17 11 Robot Miss Streak 3 | . 3 2 Penetration Max . | . . . Secondary Targets 1 | . 1 . Max Gunslinging Chain 1 | . 1 . Shots Hit Robots 90 | . 50 40 Core Hits 36 | . 24 12 Critical Kills . | . . . Critical Parts Destroyed . | . . . Critical Strikes 1 | . 1 . Blast 1 | . 1 . Melee Attacks . | . . . Impact . | . . . Slashing . | . . . Piercing . | . . . Sneak Attacks . | . . . Combat Hostiles . | . . . Follow-up Attacks . | . . . Damage Inflicted 1537 | . 865 672 Guns 506 | . 506 . Cannons 985 | . 313 672 Explosions . | . . . Melee . | . . . Ramming 46 | . 46 . Kinetic 1491 | . 819 672 Thermal . | . . . Explosive . | . . . Electromagnetic . | . . . Impact . | . . . Slashing . | . . . Piercing . | . . . Highest Corruption 1 | . 1 1 Average Corruption 1 | . 1 1 Corruption Purged . | . . . Corruption Blocked . | . . . Effects 11 | . 3 8 Message Errors 2 | . . 2 Matter Fused 2 | . 1 1 Heat Flow Errors 1 | . 1 . Energy Discharges 2 | . 1 1 Data Loss (minor) 1 | . . 1 Data Loss (major) 1 | . . 1 Misfires 2 | . . 2 Overload Shots . | . . . Overflow Damage 4 | . 4 . Projectiles 4 | . 4 . Explosions . | . . . Melee . | . . . Knockbacks 14 | . 6 8 Impact . | . . . Kinetic 13 | . 5 8 Secondary 1 | . 1 . Self-Inflicted Damage . | . . . Shots . | . . . Rammed 8 | . 8 . Targets Rammed 9 | . 9 . Kicked . | . . . Crushed 1 | . 1 . Highest Temperature 246 | . 246 1 Average Temperature 77 | . 77 1 Received Heat Transfer 306 | . 207 99 Effects 1 | . 1 . Interference 1 | . 1 . Siege Activations . | . . . Robots Corrupted . | . . . Combat Hostiles . | . . . Parts Fried . | . . . Impact Corruptions 1 | . 1 . Robots Melted . | . . . Combat Hostiles . | . . . Parts Melted 1 | . . 1 Heat Transferred . | . . . Parts Sabotaged . | . . . Parts Stolen . | . . . Parts Stripped . | . . . Power Chain Reactions . | . . . Alert | -11 -10 -10 ------- Run | Yrd Mat Sub Peak Influence 282 | . 282 . Initial . | . . . Average 86 | . 94 . Maximum Alert Level 1 | . 1 . Low Security (%) 86 | 100 84 . Level 1 13 | . 15 . Level 2 . | . . . Level 3 . | . . . Level 4 . | . . . Level 5 . | . . . High Security . | . . . Max Security . | . . . Squads Dispatched 2 | . 2 . Investigation . | . . . Extermination . | . . . Reinforcement 2 | . 2 . Assault . | . . . Garrison . | . . . Intercept . | . . . Searches Triggered . | . . . Construction Impeded . | . . . Haulers Reinforced . | . . . Active Scanning Responses . | . . . Cargo Convoy Interrupts . | . . . Stealth | -11 -10 -10 --------- Run | Yrd Mat Sub Distress Signals 1 | . 1 . Communications Jammed . | . . . Distress Signals . | . . . Times Spotted 26 | . 19 7 Peak Tracking Total 4 | . 4 2 Tactical Retreats . | . . . Traps | -11 -10 -10 ------- Run | Yrd Mat Sub Traps Triggered 2 | . 2 . Indirectly . | . . . Trap Hack Attempts . | . . . Triggered . | . . . Disarmed . | . . . Reprogrammed . | . . . Reused . | . . . Traps Extracted . | . . . Installed . | . . . Triggered . | . . . Machines | -11 -10 -10 ---------- Run | Yrd Mat Sub Machines Disabled . | . . . Max in Single Turn . | . . . Machines Repaired . | . . . Machines Dismantled . | . . . Machines Sabotaged . | . . . Overloaded Fab Kills . | . . . Hacking | -11 -10 -10 --------- Run | Yrd Mat Sub Machines Accessed 2 | . 2 . Terminals 2 | . 2 . Fabricators . | . . . Repair Stations . | . . . Recycling Units . | . . . Scanalyzers . | . . . Garrison Access . | . . . Total Hacks 4 | . 4 . Successful 3 | . 3 . Failed 1 | . 1 . Catastrophic . | . . . Database Lockouts . | . . . Manual 3 | . 3 . Terminals 4 | . 4 . Fabricators . | . . . Repair Stations . | . . . Recycling Units . | . . . Scanalyzers . | . . . Garrison Access . | . . . Terminal Hacks . | . . . Fabricator Hacks . | . . . Repair Station Hacks . | . . . Recycling Unit Hacks . | . . . Scanalyzer . | . . . Garrison Access Hacks . | . . . Unauthorized Hacks 3 | . 3 . Terminals 3 | . 3 . Botnet 2 | . 2 . Operators 1 | . 1 . Fabricators . | . . . Repair Stations . | . . . Recycling Units . | . . . Scanalyzers . | . . . Garrison Access . | . . . Data Cores Recovered . | . . . Used . | . . . Hacking Detections 2 | . 2 . Full Trace Events . | . . . Feedback Events . | . . . Feedback Blocked . | . . . Robot Schematics Acquired . | . . . Robots Built . | . . . Authchips . | . . . Time . | . . . Total Robot Build Rating . | . . . Part Schematics Acquired . | . . . Parts Built . | . . . Authchips . | . . . Time . | . . . Total Part Build Rating . | . . . Parts Repaired . | . . . Time . | . . . Parts Recycled . | . . . Recycled Matter . | . . . Retrieved Matter . | . . . Retrieved Components . | . . . Parts Scanalyzed . | . . . Part Schematics Acquired . | . . . Parts Damaged . | . . . Bothacking | -11 -10 -10 ------------ Run | Yrd Mat Sub Used RIF Installer . | . . . Robots Hacked . | . . . Non-combat . | . . . Combat . | . . . Robot Hacks Applied . | . . . Relay Couplers Released . | . . . Fabnet Peak Effective % . | . . . Robots Rewired . | . . . Allies Hacked . | . . . Hacks Repelled . | . . . Allies | -11 -10 -10 -------- Run | Yrd Mat Sub Total Allies . | . . . Largest Group . | . . . Highest-Rated Group . | . . . Highest-Rated Ally . | . . . Total Orders . | . . . Ally Attacks . | . . . Total Damage . | . . . Kills . | . . . Allies Corrupted . | . . . Allies Melted . | . . . Intel | -11 -10 -10 ------- Run | Yrd Mat Sub Robot Analysis Total . | . . . Derelict Logs Recovered . | . . . Drone Launches . | . . . Drone Recoveries . | . . . Exploration | -11 -10 -10 ------------- Run | Yrd Mat Sub Turns Passed 1661 | 95 943 623 Spaces Moved 915 | 55 424 436 Core 9 | 9 . . Treads 607 | 46 424 137 Legs . | . . . Wheels 299 | . . 299 Hover . | . . . Flight . | . . . Fastest Speed 50 | 50 160 105 Average Speed 141 | 145 160 122 Slowest Speed 160 | 160 160 160 Overloaded Moves . | . . . Propulsion Burnouts . | . . . Robots Hopped . | . . . Cave-ins Triggered . | . . . Exploration Rate (%) 32 | 4 47 45 Regions Visited 2 Branch Regions 1 Pre-discovered Areas 1 | . . 1 Known Exits Taken . | . . . Unknown Exits Taken 2 | 1 1 . Scrap Searched 1 | . . 1 Spaces Dug . | . . . Terrain Destroyed 2 | . 2 . Melee . | . . . Projectile 2 | . 2 . AOE . | . . . Terrain Rammed . | . . . Walls Destroyed . | . . . Machines Disabled . | . . . Actions | -11 -10 -10 --------- Run | Yrd Mat Sub Total 1151 | 67 607 477 Wait 119 | . 113 6 Move 913 | 54 423 436 Hop . | . . . Pick Up 18 | 6 9 3 Fast Attach 8 | 6 2 . Attach 1 | . . 1 Detach . | . . . Swap 8 | 1 5 2 Drop 6 | . 3 3 Fire 69 | . 43 26 Melee . | . . . Ram . | . . . Kick . | . . . Crush 9 | . 9 . Escape Stasis . | . . . Rewire . | . . . Trap . | . . . Miscellaneous . | . . . Route ------- -11/Scrapyard -10/Materials (discovered 3 exits: [*Mat] / [*Min] / [*Sub]) -10/Subcaves (discovered 1 exit: *Mat) History --------- Turn | Location | Event 2 | -11/Scrapyard | Met Revision 17 3 | -11/Scrapyard | Discovered new exit (range 16) 96 | -11/Scrapyard | Entered Materials 309 | -10/Materials | Build established: Mutant 496 | -10/Materials | Discovered new exit (range 8) 645 | -10/Materials | Discovered new exit (range 7) 1012 | -10/Materials | Discovered new exit (range 7) 1039 | -10/Materials | Entered Subcaves 1111 | -10/Subcaves | Discovered new exit (range 6) 1121 | -10/Subcaves | Identified exit to Materials 1304 | -10/Subcaves | Core integrity fell below 50% 1371 | -10/Subcaves | Core integrity fell below 20% 1635 | -10/Subcaves | Learned location of Zion (-7) 1635 | -10/Subcaves | Met a Zionite searching for "candidates" 1662 | -10/Subcaves | Destroyed by JB-PQ6(R) with Subdweller Machine Gun Last Messages --------------- Acquired 18 matter. Acquired 2 matter. System corrupted: Component data lost. Acquired 10 matter. Acquired 9 matter. Acquired 5 matter. Acquired 11 matter. Dropped Lgt. Treads. Acquired Scrap Shield. System corrupted: Energy discharge (-20). Q1-SZS(z): "She is not going to be happy we haven't found any suitable candidates yet." Q1-SZS(z): "Hey you! It's really dangerous down here, I feel that you could die at any moment. For your health and safety might I suggest a trip to Zion?" World map updated: -7/Zion. System corrupted: FCS attempts to trigger Imp. Light Cannon. System corrupted: Imp. Light Cannon misfires. Map ----- +----------------------------------------------------+ | ??????????????????????????????????????????????? | | ??????????????????????????????????????????????? | | ??????????????????????????????????????????????? | | ??????????????????????????????????????????????? | | ??????????????????????????????????????????????? | | ??????????????????????????????????????????????? | | ??????????????????????????????????????????????? | | ??????????????????????????????????????????????? | | ??????????????????????????????????????????????? | | ??????????????????????????????????????????????? | | ??????????????????????????????????????????????? | | ??????????????????????????? ???????????????? | | ??????????????????????????? ???????????????? | | ??????????????????????????# ???????????????? | | ?????????????????????##### ????????????????? | | ?????????????????????# R?????????????????? | | ????????????????###### ?????????????????? | | ???????????????## ??????????????????? | | ???????????????# #???????? ?????????? | | ???????????????? ###???? ?????????" | | ?????????????????? ### ???????"" | | ??????????????????? #?????????#" | | ???????????????????? #????????##" | | ???????????????####### ?????????#" | | ???????????????# # ## #???????????????#" | | ???????????????## @ ##???????????????#" | | ???????????????# ##????????????????#" | | ???????????????# ##### #??????????????#### | | ???????????????## #???# #???#########?## | | ???????????????# ##### #??## ## ### | | ???????????????# ## #### ##### | | ???????????????# #???# | | ???????????????# #???# | | ??????????????# ### # # #??# | | ??????????????## #?### # #?# | | ???????????????## ### #??# # ## ##?# | | ????????????????## #?# #??# ###############??? | | ?????????????????# ? ?? ????????????????? | | ?????????????????##"? # #????????????????? | | ??????????????????? ? ????????????????? | | ???????????????????"? ????????????????? | | ??????????????????? ? ????????????????? | | ????????????????????? ????????????????? | | ?????????????????????#### ##????????????????? | | ????????????????????????#####?????????????????? | | ??????????????????????????????????????????????? | | ??????????????????????????????????????????????? | | ??????????????????????????????????????????????? | | ??????????????????????????????????????????????? | | ??????????????????????????????????????????????? | +----------------------------------------------------+ Best States ------------- Heat Dissipation 25 Energy Generation 10 Energy Capacity 250 Matter Stores 300 Matter Capacity 300 Sight Range 16 Terrain Scan Density 10 Armor Coverage 150 Evasion (%) 40 Recoil Reduction 2 Item Schematics ----------------- None Robot Schematics ------------------ None Fabricated ------------ Nothing Alien Tech Used ----------------- None Achievements -------------- None Challenges ------------ None Game ------ Seed HardenedGodSink Manual? 0 Play Time 00:15:32 Cumulative 36.0 hours Start 2024.04.20 @ 01:20:02 End 2024.04.20 @ 01:31:12 Sessions 1 Manual Loads 0 Difficulty Rogue Special Mode None Game No. 64 Rogue 64 Adventurer 0 Explorer 0 Win Type - Total 0 Types 0/0/0/0/0/0/0/0/0 Lore% 29 Gallery% 35 Achievement% 34 Wizard Run 0 Options --------- Layout 1 ASCII 0 Keyboard 0 Movement Numpad Keybinds 0 Fullscreen 1 Font 32/SmallcapsGlow Map View 50x35 Zoom Use 0% Tactical HUD 0 Map Filters NONE Filters NONE Steam 1 RUN: f4b60510-8e3f-4186-8969-481b0bfb0feb